bitfinex/quotes_SOLUSD_20230116
["timestamp","ask_amount","ask_price","bid_price","bid_amount"]
[1673904389042,20.0,23.499,23.484,21.46196354]
[1673904389260,20.0,23.499,23.485,17.0]
[1673904389664,20.0,23.499,23.485,38.46196354]
[1673904390082,20.0,23.5,23.485,38.46196354]
[1673904390313,20.0,23.5,23.486,20.0]
[1673904390626,20.0,23.5,23.487,17.0]
[1673904390829,20.0,23.5,23.488,20.0]
[1673904391032,20.0,23.5,23.489,17.0]
[1673904391363,128.9521,23.501,23.489,17.0]
[1673904391364,108.9521,23.501,23.489,38.46196354]
[1673904392287,20.0,23.503,23.489,38.46196354]
[1673904394535,20.0,23.503,23.489,17.0]
[1673904394717,51.93,23.503,23.487,17.0]
[1673904394929,51.93,23.503,23.488,20.0]
[1673904395241,53.40196354,23.502,23.487,21.46196354]
[1673904395451,17.0,23.501,23.475,34.38548435]
[1673904395662,31.94,23.5,23.473,21.46196354]
[1673904395873,41.92486,23.499,23.47,16.47]
[1673904396079,36.86486,23.498,23.47,16.47]
[1673904396302,57.0,23.497,23.466,76.48407909]
[1673904396513,31.94,23.496,23.466,76.48407909]
[1673904396728,57.0,23.495,23.466,76.48407909]
[1673904397060,31.95,23.494,23.466,76.48407909]
[1673904397226,37.0,23.493,23.467,17.0]
[1673904397441,20.0,23.491,23.467,17.0]
[1673904397652,31.95,23.49,23.467,38.46196354]
[1673904398073,20.0,23.489,23.468,20.0]
[1673904398291,31.96,23.488,23.469,17.0]
[1673904398496,31.96,23.488,23.468,21.46196354]
[1673904398818,31.96,23.488,23.466,35.47748435]
[1673904398819,37.0,23.487,23.466,35.47748435]
[1673904399018,31.96,23.486,23.458,41.00659474]
[1673904399229,20.0,23.484,23.459,35.47748435]
[1673904399442,31.96,23.483,23.461,62.46855828]
[1673904399651,31.96,23.483,23.462,20.0]
[1673904399865,20.0,23.484,23.462,117.94604263]
[1673904400071,20.0,23.484,23.463,56.93944789]
[1673904400285,20.0,23.484,23.463,35.47748435]
[1673904400503,20.0,23.484,23.464,17.0]
[1673904400702,20.0,23.484,23.465,20.0]
[1673904400906,20.0,23.484,23.466,17.0]
[1673904401143,20.0,23.484,23.467,20.0]
[1673904401340,17.0,23.483,23.464,21.46196354]
[1673904401566,17.0,23.483,23.439,42.5372]
[1673904401567,48.96,23.483,23.453,2.498]
[1673904401871,48.96,23.483,23.458,21.46196354]
[1673904402063,20.0,23.482,23.458,21.46196354]
[1673904402279,48.96,23.481,23.458,21.46196354]
[1673904402510,31.96,23.481,23.458,21.46196354]
[1673904402704,20.0,23.48,23.461,17.0]
[1673904404182,20.0,23.478,23.461,17.0]
[1673904404934,20.0,23.482,23.461,118.41704263]
[1673904405126,31.96,23.488,23.462,20.0]
[1673904405127,20.0,23.487,23.462,20.0]
[1673904405344,20.0,23.487,23.463,17.0]
[1673904405549,20.0,23.487,23.464,20.0]
[1673904405881,31.96,23.483,23.461,41.00659474]
[1673904406064,20.0,23.482,23.461,41.00659474]
[1673904406278,48.96,23.481,23.461,41.00659474]
[1673904406500,20.0,23.48,23.461,41.00659474]
[1673904406694,31.97,23.479,23.461,41.00659474]
[1673904407110,20.0,23.478,23.462,17.0]
[1673904407324,20.0,23.478,23.461,41.00659474]
[1673904407746,16.47,23.47,23.44,16.36]
[1673904408084,16.47,23.46,23.434,21.46196354]
[1673904408273,31.99,23.459,23.43,16.44]
[1673904408484,20.0,23.458,23.435,20.0]
[1673904408693,20.0,23.458,23.44,16.44]
[1673904409124,20.0,23.456,23.436,21.46196354]
[1673904409334,49.0,23.455,23.436,21.46196354]
[1673904409763,20.0,23.454,23.436,21.46196354]
[1673904410081,20.0,23.452,23.436,21.46196354]
[1673904410290,20.0,23.452,23.43,16.45]
[1673904410501,20.0,23.45,23.43,16.45]
[1673904410686,17.0,23.449,23.431,21.46196354]
[1673904410896,20.0,23.448,23.43,16.45]
[1673904411105,20.0,23.448,23.427,21.46196354]
[1673904411331,49.01,23.447,23.42,16.36]
[1673904411537,49.01,23.447,23.416,41.1189172]
[1673904411748,20.0,23.446,23.416,41.1189172]
[1673904411956,20.0,23.444,23.417,21.46196354]
[1673904412163,69.02,23.443,23.417,21.46196354]
[1673904412387,69.02,23.443,23.413,110.455]
[1673904412601,20.0,23.442,23.414,21.46196354]
[1673904412808,49.02,23.441,23.414,21.46196354]
[1673904413019,20.0,23.44,23.414,21.46196354]
[1673904413221,49.02,23.439,23.415,20.0]
[1673904413445,49.02,23.439,23.414,21.46196354]
[1673904413631,49.02,23.439,23.416,21.46196354]
[1673904413844,49.02,23.439,23.411,41.1189172]
[1673904414065,49.02,23.439,23.41,16.47]
[1673904414066,20.0,23.438,23.412,62.58088074]
[1673904414276,32.02,23.437,23.412,62.58088074]
[1673904414472,32.02,23.437,23.413,62.58088074]
[1673904414690,32.02,23.437,23.42,16.47]
[1673904414900,20.0,23.436,23.414,45.7989172]
[1673904415126,20.0,23.436,23.415,17.0]
[1673904415333,32.03,23.435,23.416,20.0]
[1673904415541,20.0,23.45,23.42,16.32]
[1673904415753,20.0,23.45,23.421,20.0]
[1673904415974,20.0,23.45,23.423,20.0]
[1673904416285,20.0,23.443,23.424,17.0]
[1673904416500,32.02,23.442,23.424,21.46196354]
[1673904416812,32.02,23.442,23.425,58.46196354]
[1673904417006,20.0,23.446,23.425,105.88516383]
[1673904417216,20.0,23.446,23.426,68.88516383]
[1673904417434,32.02,23.443,23.427,20.0]
[1673904417653,20.0,23.442,23.427,68.88516383]
[1673904417845,32.02,23.441,23.427,47.42320029]
[1673904418057,20.0,23.44,23.425,21.46196354]
[1673904418284,32.02,23.439,23.425,21.46196354]
[1673904418486,32.02,23.441,23.425,21.46196354]
[1673904418695,20.0,23.442,23.425,21.46196354]
[1673904418898,20.0,23.442,23.426,47.42320029]
[1673904419428,20.0,23.44,23.426,21.46196354]
[1673904420373,20.0,23.44,23.424,47.42320029]
[1673904420695,20.0,23.44,23.417,20.0]
[1673904420696,36.46,23.44,23.416,33.08238143]
[1673904420903,20.0,23.438,23.415,20.0]
[1673904421115,49.02,23.437,23.417,21.46196354]
[1673904421315,49.02,23.437,23.41,16.47]
[1673904421645,32.02,23.437,23.411,21.46196354]
[1673904421838,20.0,23.44,23.42,16.47]
[1673904421839,32.02,23.439,23.42,16.47]
[1673904422055,32.01,23.447,23.421,20.0]
[1673904422268,52.01,23.449,23.422,20.0]
[1673904422485,52.01,23.449,23.422,41.46196354]
[1673904422695,52.01,23.449,23.423,21.46196354]
[1673904422885,32.01,23.447,23.423,21.46196354]
[1673904423102,20.0,23.449,23.43,16.47]
[1673904423536,20.0,23.449,23.431,21.46196354]
[1673904423861,20.0,23.449,23.43,16.47]
[1673904424171,52.01,23.448,23.427,21.46196354]
[1673904424377,52.01,23.448,23.42,16.47]
[1673904424898,52.01,23.448,23.43,16.45]
[1673904425110,20.0,23.448,23.43,16.45]
[1673904425320,20.0,23.448,23.431,21.46196354]
[1673904425517,20.0,23.448,23.432,20.0]
[1673904425727,20.0,23.448,23.433,17.0]
[1673904425932,20.0,23.448,23.434,20.0]
[1673904426153,20.0,23.449,23.435,17.0]
[1673904426358,20.0,23.452,23.44,16.44]
[1673904426583,148.3884,23.464,23.441,17.0]
[1673904426778,20.0,23.463,23.441,17.0]
[1673904427115,31.99,23.462,23.441,17.0]
[1673904427323,20.0,23.461,23.441,17.0]
[1673904427533,31.99,23.46,23.441,17.0]
[1673904427930,20.0,23.461,23.441,17.0]
[1673904428141,32.0,23.457,23.434,20.0]
[1673904428384,20.0,23.456,23.434,20.0]
[1673904428590,49.0,23.455,23.434,20.0]
[1673904428785,20.0,23.454,23.434,20.0]
[1673904428985,20.0,23.454,23.44,16.44]
[1673904429199,20.0,23.456,23.44,16.44]
[1673904429633,20.0,23.461,23.441,20.0]
[1673904429835,20.0,23.461,23.442,17.0]
[1673904430259,20.0,23.461,23.441,17.0]
[1673904432559,51.99,23.461,23.441,17.0]
[1673904432767,20.0,23.461,23.441,17.0]
[1673904433197,20.0,23.461,23.44,24.8]
[1673904433407,17.0,23.457,23.434,20.0]
[1673904433602,32.0,23.456,23.431,20.0]
[1673904433818,17.0,23.455,23.431,20.0]
[1673904434028,52.0,23.454,23.431,20.0]
[1673904434760,52.0,23.454,23.432,17.0]
[1673904434972,52.0,23.454,23.433,20.0]
[1673904435181,20.0,23.454,23.431,20.0]
[1673904435390,20.0,23.454,23.432,20.0]
[1673904435620,20.0,23.454,23.433,20.0]
[1673904435817,20.0,23.456,23.44,24.8]
[1673904436248,20.0,23.461,23.441,17.0]
[1673904436907,20.0,23.461,23.441,38.46196354]
[1673904437430,20.0,23.459,23.441,38.46196354]
[1673904437949,20.0,23.459,23.441,17.0]
[1673904438352,20.0,23.459,23.44,24.8]
[1673904438568,32.0,23.458,23.442,21.46196354]
[1673904438778,20.0,23.457,23.442,21.46196354]
[1673904439830,20.0,23.459,23.443,17.0]
[1673904440251,20.0,23.461,23.443,17.0]
[1673904440252,31.99,23.462,23.444,21.46196354]
[1673904440577,116.3984,23.464,23.445,37.0]
[1673904440779,116.3984,23.464,23.446,20.0]
[1673904441102,116.3984,23.464,23.447,37.0]
[1673904441300,116.3984,23.464,23.447,58.46196354]
[1673904441503,116.3984,23.464,23.448,21.46196354]
[1673904441723,20.0,23.463,23.449,37.0]
[1673904441944,20.0,23.463,23.448,21.46196354]
[1673904442253,31.99,23.462,23.448,21.46196354]
[1673904442476,31.99,23.462,23.432,118.9442]
[1673904442665,20.0,23.46,23.432,118.9442]
[1673904443003,48.99,23.459,23.433,21.46196354]
[1673904443191,20.0,23.458,23.433,21.46196354]
[1673904443403,49.0,23.457,23.433,21.46196354]
[1673904443737,20.0,23.456,23.433,21.46196354]
[1673904443923,49.0,23.455,23.433,21.46196354]
[1673904444133,20.0,23.454,23.433,21.46196354]
[1673904444466,20.0,23.454,23.434,20.0]
[1673904444894,20.0,23.454,23.435,21.46196354]
[1673904445200,20.0,23.454,23.436,20.0]
[1673904445400,20.0,23.452,23.436,20.0]
[1673904445603,17.0,23.451,23.436,20.0]
[1673904445813,17.0,23.451,23.433,20.0]
[1673904446022,17.0,23.451,23.425,13.33]
[1673904446233,32.01,23.45,23.427,20.0]
[1673904446442,37.0,23.449,23.427,20.0]
[1673904446678,32.01,23.448,23.427,20.0]
[1673904446870,17.0,23.447,23.427,41.46196354]
[1673904447601,20.0,23.445,23.427,41.46196354]
[1673904447812,49.02,23.444,23.427,41.46196354]
[1673904448145,20.0,23.443,23.427,41.46196354]
[1673904448349,17.0,23.442,23.427,41.46196354]
[1673904448545,20.0,23.443,23.427,41.46196354]
[1673904448875,20.0,23.443,23.428,21.46196354]
[1673904449089,20.0,23.449,23.428,21.46196354]
[1673904449298,20.0,23.449,23.429,20.0]
[1673904449742,20.0,23.45,23.43,66.26196354]
[1673904449919,20.0,23.45,23.431,17.0]
[1673904450133,20.0,23.45,23.431,38.46196354]
[1673904450340,32.01,23.449,23.432,42.92392708]
[1673904450554,20.0,23.45,23.433,17.0]
[1673904450968,20.0,23.45,23.434,21.46196354]
[1673904451178,20.0,23.45,23.435,17.0]
[1673904451611,20.0,23.45,23.436,21.46196354]
[1673904451824,114.4867,23.451,23.436,21.46196354]
[1673904452020,109.4683,23.452,23.438,20.0]
[1673904452237,147.4745,23.457,23.44,24.8]
[1673904452434,147.4745,23.457,23.441,17.0]
[1673904452651,20.0,23.456,23.441,38.46196354]
[1673904452859,20.0,23.456,23.442,21.46196354]
[1673904454441,17.0,23.455,23.43,54.109]
[1673904454656,52.0,23.454,23.432,58.46196354]
[1673904454859,20.0,23.452,23.432,58.46196354]
[1673904455073,20.0,23.452,23.433,21.46196354]
[1673904455281,20.0,23.452,23.434,20.0]
[1673904455696,20.0,23.452,23.435,21.46196354]
[1673904455904,20.0,23.452,23.436,20.0]
[1673904456322,20.0,23.452,23.437,42.92392708]
[1673904456533,20.0,23.452,23.438,20.0]
[1673904456978,20.0,23.452,23.439,38.46196354]
[1673904457382,20.0,23.452,23.44,21.46196354]
[1673904458759,20.0,23.452,23.44,46.26196354]
[1673904459080,52.0,23.458,23.441,38.46196354]
[1673904459276,20.0,23.458,23.442,20.0]
[1673904459493,20.0,23.458,23.443,17.0]
[1673904459694,20.0,23.458,23.443,38.46196354]
[1673904459907,20.0,23.458,23.444,21.46196354]
[1673904460110,20.0,23.458,23.443,38.28371407]
[1673904460327,52.0,23.457,23.435,42.92392708]
[1673904460542,20.0,23.456,23.435,21.46196354]
[1673904460754,20.0,23.454,23.435,21.46196354]
[1673904460952,69.0,23.453,23.435,21.46196354]
[1673904461163,69.0,23.453,23.43,43.53438143]
[1673904461164,24.8,23.45,23.43,43.53438143]
[1673904461380,20.0,23.448,23.428,21.46196354]
[1673904461686,49.01,23.447,23.429,20.0]
[1673904461902,49.01,23.447,23.42,24.75]
[1673904462102,24.92486,23.446,23.415,21.46196354]
[1673904462317,24.8,23.44,23.41,24.8]
[1673904462550,319.19616,23.439,23.408,42.42]
[1673904462745,4.92486,23.438,23.408,42.42]
[1673904463061,24.8,23.43,23.401,3.656]
[1673904463297,175.44,23.429,23.4,24.58]
[1673904463597,24.8,23.42,23.396,42.42]
[1673904463808,17.0,23.419,23.396,42.42]
[1673904464203,17.0,23.419,23.397,20.0]
[1673904464644,17.0,23.419,23.394,3.313]
[1673904464962,17.0,23.419,23.4,24.8]
[1673904465157,17.0,23.419,23.401,17.0]
[1673904465362,52.03,23.436,23.402,25.748]
[1673904465692,138.4709,23.436,23.41,24.8]
[1673904466117,32.03,23.435,23.404,7.151]
[1673904466306,20.0,23.434,23.405,37.0]
[1673904466517,32.03,23.433,23.405,38.46196354]
[1673904466749,32.03,23.433,23.41,24.8]
[1673904467147,32.03,23.433,23.411,21.46196354]
[1673904467474,20.0,23.434,23.412,17.0]
[1673904467889,20.0,23.434,23.413,21.46196354]
[1673904468101,20.0,23.434,23.414,17.0]
[1673904468309,20.0,23.435,23.415,20.0]
[1673904468512,20.0,23.435,23.416,17.0]
[1673904468723,20.0,23.435,23.417,20.0]
[1673904468947,20.0,23.435,23.417,41.46196354]
[1673904469155,20.0,23.435,23.417,20.0]
[1673904469379,20.0,23.433,23.417,21.46196354]
[1673904469584,49.03,23.432,23.417,21.46196354]
[1673904469795,20.0,23.431,23.417,21.46196354]
[1673904469985,20.0,23.429,23.417,21.46196354]
[1673904470405,17.0,23.428,23.417,21.46196354]
[1673904470629,20.0,23.427,23.417,21.46196354]
[1673904471360,17.0,23.426,23.41,24.8]
[1673904471568,20.0,23.425,23.411,21.46196354]
[1673904473036,20.0,23.431,23.411,21.46196354]
[1673904473253,165.835,23.437,23.413,20.0]
[1673904473560,52.03,23.435,23.414,37.0]
[1673904473890,20.0,23.435,23.415,21.46196354]
[1673904474082,20.0,23.435,23.415,62.91195761]
[1673904474292,32.03,23.434,23.416,20.0]
[1673904474524,32.03,23.434,23.416,41.46196354]
[1673904474734,20.0,23.435,23.417,21.46196354]
[1673904475349,52.03,23.435,23.41,24.8]
[1673904475558,32.03,23.432,23.41,24.8]
[1673904475765,32.03,23.432,23.416,21.46196354]
[1673904476077,20.0,23.43,23.416,21.46196354]
[1673904477573,20.0,23.43,23.417,20.0]
[1673904478100,20.0,23.43,23.414,20.0]
[1673904478288,20.0,23.43,23.415,17.0]
[1673904478594,20.0,23.43,23.416,20.0]
[1673904479026,20.0,23.43,23.417,41.44999407]
[1673904479230,20.0,23.43,23.417,82.1243755]
[1673904479440,32.04,23.429,23.417,82.1243755]
[1673904479670,17.0,23.428,23.4,138.6386]
[1673904479981,32.04,23.427,23.408,41.44999407]
[1673904480173,32.04,23.427,23.41,24.8]
[1673904480384,32.04,23.429,23.41,24.8]
[1673904480591,20.0,23.43,23.411,82.91195761]
[1673904480816,20.0,23.43,23.411,62.91195761]
[1673904481038,20.0,23.43,23.41,24.8]
[1673904481236,20.0,23.43,23.411,17.0]
[1673904481447,20.0,23.43,23.411,38.46196354]
[1673904481665,20.0,23.43,23.412,41.46196354]
[1673904482067,20.0,23.43,23.413,21.46196354]
[1673904482279,20.0,23.43,23.414,20.0]
[1673904482598,20.0,23.43,23.414,61.44999407]
[1673904482804,20.0,23.43,23.415,58.44999407]
[1673904483014,20.0,23.43,23.416,19.0]
[1673904483227,20.0,23.43,23.416,60.44999407]
[1673904483437,20.0,23.43,23.417,41.44999407]
[1673904483654,20.0,23.435,23.417,62.91195761]
[1673904483866,20.0,23.435,23.42,24.8]
[1673904484279,20.0,23.435,23.421,86.71770883]
[1673904484704,20.0,23.435,23.422,46.0433274]
[1673904485138,20.0,23.433,23.422,46.0433274]
[1673904485759,20.0,23.433,23.416,19.0]
[1673904486086,17.0,23.432,23.41,24.8]
[1673904486301,52.03,23.431,23.402,3.872]
[1673904486508,17.0,23.43,23.402,46.0433274]
[1673904486831,20.0,23.428,23.403,46.0433274]
[1673904487041,49.04,23.427,23.403,46.0433274]
[1673904487355,20.0,23.426,23.403,46.0433274]
[1673904487560,17.0,23.425,23.404,20.0]
[1673904487757,20.0,23.424,23.403,46.0433274]
[1673904487972,20.0,23.424,23.401,3.539]
[1673904488299,17.0,23.423,23.393,3.558]
[1673904488503,20.0,23.424,23.393,41.51971476]
[1673904488830,17.0,23.423,23.394,37.96171476]
[1673904489036,20.0,23.424,23.4,23.12]
[1673904489269,17.0,23.423,23.396,20.0]
[1673904489650,20.0,23.421,23.397,6.895]
[1673904489864,49.05,23.42,23.396,20.0]
[1673904490084,17.0,23.42,23.395,20.0]
[1673904490297,40.03,23.42,23.392,20.0]
[1673904490615,53.51196354,23.419,23.387,132.93506354]
[1673904490808,23.03,23.41,23.387,21.46196354]
[1673904491016,49.06,23.409,23.377,42.42]
[1673904491224,49.06,23.409,23.381,42.42]
[1673904491225,146.4,23.408,23.381,42.42]
[1673904491451,180.39486,23.407,23.381,42.42]
[1673904491644,149.62,23.4,23.362,6.669]
[1673904491858,54.00486,23.399,23.364,42.42]
[1673904492073,4.92486,23.398,23.364,42.42]
[1673904492275,23.22,23.39,23.364,63.88196354]
[1673904492489,32.09,23.389,23.364,63.88196354]
[1673904492698,23.13,23.38,23.351,42.42]
[1673904492905,54.02486,23.379,23.358,63.88196354]
[1673904493116,32.1,23.379,23.358,63.88196354]
[1673904493352,37.0,23.388,23.341,3.019]
[1673904493353,17.0,23.378,23.341,42.42]
[1673904493559,23.15,23.37,23.344,42.42]
[1673904493870,69.12,23.369,23.344,42.42]
[1673904494089,69.12,23.369,23.344,63.88196354]
[1673904494299,69.12,23.369,23.344,42.42]
[1673904494607,4.92486,23.368,23.343,0.02025514]
[1673904494818,49.12,23.367,23.343,21.48221868]
[1673904495037,49.12,23.367,23.344,42.42]
[1673904495338,20.0,23.368,23.345,21.46196354]
[1673904495655,49.12,23.367,23.344,42.42]
[1673904495967,23.03,23.35,23.345,20.0]
[1673904496182,23.03,23.35,23.338,42.42]
[1673904496183,32.15,23.349,23.338,42.42]
[1673904496583,32.14,23.355,23.338,42.42]
[1673904496808,32.12,23.365,23.338,42.42]
[1673904497007,32.12,23.37,23.34,65.64]
[1673904497220,20.0,23.349,23.34,135.11]
[1673904497432,20.0,23.349,23.341,102.41632791]
[1673904497650,32.09,23.386,23.341,21.46196354]
[1673904497853,32.09,23.386,23.342,41.46196354]
[1673904498068,32.09,23.386,23.35,23.22]
[1673904498263,23.22,23.38,23.351,17.0]
[1673904498475,23.62934303,23.347,23.342,20.0]
[1673904498705,4.303e-05,23.347,23.342,20.0]
[1673904498917,4.303e-05,23.347,23.343,27.83094407]
[1673904499119,32.09,23.386,23.344,4.94279]
[1673904499333,20.0,23.389,23.344,4.94279]
[1673904499334,20.0,23.385,23.36,23.22]
[1673904499649,20.0,23.385,23.361,4.41]
[1673904499968,20.0,23.385,23.362,17.0]
[1673904500284,20.0,23.385,23.363,27.381]
[1673904500474,20.0,23.385,23.364,17.0]
[1673904500679,20.0,23.387,23.37,23.22]
[1673904500885,20.0,23.387,23.371,46.181]
[1673904501127,20.0,23.389,23.38,23.12]
[1673904501312,20.0,23.394,23.381,47.59]
[1673904501737,20.0,23.404,23.382,36.45139797]
[1673904501957,20.0,23.404,23.383,50.78]
[1673904502164,52.05,23.418,23.383,33.78]
[1673904502373,32.07,23.407,23.383,20.0]
[1673904502798,20.0,23.403,23.383,20.0]
[1673904503209,20.0,23.403,23.374,20.0]
[1673904503420,20.0,23.403,23.38,23.22]
[1673904503635,20.0,23.403,23.381,52.97]
[1673904503848,20.0,23.403,23.39,23.22]
[1673904504049,20.0,23.403,23.391,53.48]
[1673904504249,20.0,23.41,23.391,37.0]
[1673904504460,20.0,23.41,23.391,57.0]
[1673904504993,20.0,23.41,23.391,20.0]
[1673904505211,20.0,23.41,23.382,20.0]
[1673904505427,20.0,23.41,23.383,42.92392708]
[1673904505624,20.0,23.41,23.384,20.0]
[1673904506036,20.0,23.41,23.39,23.22]
[1673904506378,59.62373891,23.425,23.4,23.22]
[1673904506566,27.58373891,23.425,23.401,20.0]
[1673904506898,20.0,23.425,23.401,20.0]
[1673904507218,52.04,23.424,23.401,20.0]
[1673904507436,52.04,23.424,23.392,21.69]
[1673904507648,20.0,23.424,23.4,23.22]
[1673904507864,20.0,23.424,23.402,20.0]
[1673904508070,20.0,23.424,23.403,40.129]
[1673904508257,138.82381466,23.422,23.41,23.22]
[1673904508469,138.82381466,23.422,23.411,17.0]
[1673904508698,24.78239914,23.41,23.403,23.129]
[1673904509016,24.78239914,23.41,23.4,23.22]
[1673904509224,24.78239914,23.41,23.401,42.111]
[1673904509969,24.78239914,23.41,23.402,20.0]
[1673904510155,24.78239914,23.41,23.403,47.13]
[1673904510372,24.78239914,23.41,23.403,37.0]
[1673904510566,24.78239914,23.41,23.404,20.0]
[1673904510782,24.78239914,23.41,23.405,37.0]
[1673904510988,24.78239914,23.41,23.405,20.0]
[1673904511523,24.78239914,23.41,23.406,20.0]
[1673904512147,24.78239914,23.41,23.403,20.0]
[1673904512358,24.78239914,23.41,23.402,20.0]
[1673904512574,24.78239914,23.41,23.401,20.0]
[1673904512784,24.78239914,23.41,23.402,20.0]
[1673904512990,24.78239914,23.41,23.402,118.35494405]
[1673904513202,24.78239914,23.41,23.403,20.0]
[1673904513535,24.78239914,23.41,23.404,20.0]
[1673904513849,138.82381466,23.422,23.405,58.69]
[1673904514044,138.60967466,23.422,23.41,23.04]
[1673904514253,138.60967466,23.422,23.405,20.0]
[1673904514467,32.05,23.421,23.405,20.0]
[1673904514667,34.57025515,23.421,23.402,20.0]
[1673904514882,34.57025515,23.421,23.401,20.0]
[1673904515087,20.0,23.42,23.402,41.46196354]
[1673904515321,20.0,23.42,23.403,20.0]
[1673904515521,20.0,23.42,23.41,23.04]
[1673904516140,52.05,23.42,23.403,20.0]
[1673904516365,52.05,23.42,23.401,41.46196354]
[1673904516902,52.05,23.42,23.401,20.0]
[1673904517638,52.05,23.42,23.401,41.46196354]
[1673904518033,52.05,23.42,23.4,23.27]
[1673904518242,52.05,23.42,23.395,21.46196354]
[1673904519017,20.0,23.418,23.395,21.46196354]
[1673904519238,32.05,23.417,23.395,21.46196354]
[1673904519544,32.05,23.417,23.4,23.12]
[1673904519862,20.0,23.42,23.401,58.46196354]
[1673904520057,20.0,23.42,23.403,20.0]
[1673904520269,20.0,23.42,23.404,17.0]
[1673904520806,20.0,23.42,23.405,20.0]
[1673904521001,20.0,23.42,23.406,17.0]
[1673904521211,20.0,23.42,23.407,20.0]
[1673904521433,20.0,23.42,23.408,17.0]
[1673904521633,20.0,23.42,23.407,20.0]
[1673904521950,20.0,23.42,23.408,17.0]
[1673904522160,20.0,23.42,23.405,20.0]
[1673904522376,20.0,23.42,23.406,17.0]
[1673904522582,22.52025515,23.421,23.406,17.0]
[1673904522802,2.52025515,23.421,23.407,20.0]
[1673904522998,2.52025515,23.421,23.408,17.0]
[1673904523331,2.52025515,23.421,23.407,20.0]
[1673904523538,2.52025515,23.421,23.404,41.46196354]
[1673904523732,32.05,23.42,23.404,21.46196354]
[1673904523931,32.05,23.42,23.39,20.66]
[1673904524142,20.0,23.419,23.387,119.7288]
[1673904524357,73.98043,23.418,23.387,21.46196354]
[1673904524567,4.93043,23.417,23.387,21.46196354]
[1673904524792,49.05,23.416,23.387,21.46196354]
[1673904524985,40.0,23.415,23.387,21.46196354]
[1673904525196,49.06,23.414,23.387,21.46196354]
[1673904525632,21.46196354,23.413,23.381,20.0]
[1673904525852,53.99043,23.412,23.374,118.3982]
[1673904526038,4.93043,23.411,23.374,118.3982]
[1673904526245,197.98,23.41,23.373,21.46196354]
[1673904526458,24.93043,23.409,23.375,21.46196354]
[1673904526674,49.06,23.408,23.375,21.46196354]
[1673904526880,20.0,23.407,23.375,21.46196354]
[1673904527089,49.07,23.406,23.372,20.0]
[1673904527305,20.0,23.404,23.372,20.0]
[1673904527516,32.07,23.403,23.373,21.46196354]
[1673904527730,20.0,23.401,23.373,21.46196354]
[1673904528038,49.08,23.4,23.373,21.46196354]